fUSD/lending_fUSD_20240301
["ID","MTS","AMOUNT","RATE_DAILY","PERIOD"]
[316048770,1709337037564,-13042.05,0.00021917,2]
[316048771,1709337037577,-500.0,0.00021917,2]
[316048772,1709337037589,-500.0,0.00021917,2]
[316048773,1709337037602,-500.0,0.00021917,2]
[316048774,1709337037614,-1173.19,0.00021917,2]
[316048775,1709337037627,-500.0,0.00021917,2]
[316048776,1709337037640,-500.0,0.00021917,2]
[316048777,1709337037652,-500.0,0.00021917,2]
[316048778,1709337037665,-1316.07,0.00021917,2]
[316048779,1709337037677,-3044.07,0.00021917,2]
[316048780,1709337037689,-505.82,0.00021917,2]
[316048781,1709337037701,-20000.76,0.00021917,2]
[316048782,1709337037714,-500.0,0.00021917,2]
[316048783,1709337037727,-500.0,0.00021917,2]
[316048784,1709337037738,-647.06455785,0.00021917,2]
[316048785,1709337037751,-500.0,0.00021917,2]
[316048786,1709337037763,-500.0,0.00021917,2]
[316048787,1709337037778,-500.0,0.00021917,2]
[316048788,1709337037790,-781.21,0.00021917,2]
[316048789,1709337037803,-500.0,0.00021917,2]
[316048790,1709337037815,-500.0,0.00021917,2]
[316048791,1709337037827,-8201.9,0.00021917,2]
[316048792,1709337037840,-2436.89,0.00021917,2]
[316048793,1709337037851,-508.78321066,0.00021917,2]
[316048794,1709337037864,-500.0,0.00021917,2]
[316048795,1709337037876,-1668.78,0.00021917,2]
[316048796,1709337037887,-500.0,0.00021917,2]
[316048797,1709337037900,-500.0,0.00021917,2]
[316048798,1709337037912,-621.17,0.00021917,2]
[316048799,1709337037924,-500.0,0.00021917,2]
[316048800,1709337037936,-500.0,0.00021917,2]
[316048801,1709337037948,-800.0,0.00021918,2]
[316048802,1709337037960,-800.0,0.00021918,2]
[316048803,1709337037972,-800.0,0.00021918,2]
[316048804,1709337037984,-6110.18,0.00021918,2]
[316048805,1709337037997,-201.14077028,0.00021918,2]
[316048809,1709337038009,-200.0,0.00021919,2]
[316048812,1709337038024,-1972.8561,0.00021925,2]
[316048813,1709337038036,-1224.52,0.00021926,2]
[316048814,1709337038048,-1178.56,0.00021926,2]
[316048815,1709337038060,-647.42,0.00021926,2]
[316048817,1709337038072,-701.73,0.00021926,2]
[316048818,1709337038084,-1170.27,0.00021926,2]
[316048819,1709337038096,-687.81,0.00021926,2]
[316048820,1709337038108,-1024.2,0.00021926,2]
[316048821,1709337038120,-993.06,0.00021926,2]
[316048822,1709337038131,-707.01,0.00021926,2]
[316048823,1709337038144,-755.75,0.00021926,2]
[316048824,1709337038156,-1066.88,0.00021926,2]
[316048825,1709337038168,-1357.05,0.00021926,2]
[316048826,1709337038180,-500.0,0.00021926,2]
[316048827,1709337038192,-914.47,0.00021926,2]
[316048828,1709337038204,-1329.28,0.00021926,2]
[316048829,1709337038216,-1496.11,0.00021926,2]
[316048830,1709337038228,-500.0,0.00021926,2]
[316048831,1709337038240,-770.41,0.00021926,2]
[316048832,1709337038253,-500.0,0.00021926,2]
[316048833,1709337038266,-500.0,0.00021926,2]
[316048834,1709337038281,-500.0,0.00021926,2]
[316048835,1709337038293,-500.0,0.00021926,2]
[316048836,1709337038305,-565.82,0.00021926,2]
[316048837,1709337038317,-816.96,0.00021926,2]
[316048838,1709337038330,-798.33,0.00021926,2]
[316048839,1709337038342,-997.62,0.00021926,2]
[316048840,1709337038355,-715.44,0.00021926,2]
[316048841,1709337038367,-500.0,0.00021926,2]
[316048842,1709337038380,-882.68,0.00021926,2]
[316048843,1709337038392,-574.15,0.00021926,2]
[316048844,1709337038405,-500.0,0.00021926,2]
[316048845,1709337038418,-610.25,0.00021926,2]
[316048846,1709337038430,-569.93,0.00021926,2]
[316048847,1709337038443,-500.0,0.00021926,2]
[316048848,1709337038455,-867.84,0.00021926,2]
[316048849,1709337038467,-500.0,0.00021926,2]
[316048850,1709337038481,-1392.02,0.00021926,2]
[316048851,1709337038494,-908.26,0.00021926,2]
[316048852,1709337038506,-500.0,0.00021926,2]
[316048853,1709337038520,-1488.5,0.00021926,2]
[316048854,1709337038534,-500.0,0.00021926,2]
[316048855,1709337038550,-1561.1,0.00021926,2]
[316048856,1709337038563,-1035.79,0.00021926,2]
[316048857,1709337038576,-1888.83,0.00021926,2]
[316048858,1709337038588,-708.8,0.00021926,2]
[316048859,1709337038601,-643.57,0.00021926,2]
[316048861,1709337038613,-1119.27,0.00021926,2]
[316048863,1709337038626,-516.01,0.00021926,2]
[316048866,1709337038638,-500.0,0.00021926,2]
[316048868,1709337038650,-919.12,0.00021926,2]
[316048870,1709337038663,-500.0,0.00021926,2]
[316048873,1709337038675,-871.71,0.00021926,2]
[316048875,1709337038688,-577.33,0.00021926,2]
[316048877,1709337038700,-500.0,0.00021926,2]
[316048880,1709337038713,-500.0,0.00021926,2]
[316048882,1709337038724,-631.96,0.00021926,2]
[316048885,1709337038744,-500.0,0.00021926,2]
[316048887,1709337038759,-7451.32,0.00021926,2]
[316048890,1709337038773,-823.86,0.00021926,2]
[316048893,1709337038787,-500.0,0.00021926,2]
[316048895,1709337038800,-568.56,0.00021926,2]
[316048898,1709337038814,-733.16,0.00021926,2]
[316048900,1709337038828,-2150.56,0.00021926,2]
[316048903,1709337038842,-500.0,0.00021926,2]
[316048905,1709337038854,-500.0,0.00021926,2]
[316048907,1709337038867,-4292.72,0.00021926,2]
[316048910,1709337038880,-500.0,0.00021926,2]
[316048912,1709337038894,-500.0,0.00021926,2]
[316048915,1709337038907,-500.0,0.00021926,2]
[316048917,1709337038919,-627.86,0.00021926,2]
[316048919,1709337038932,-500.0,0.00021926,2]
[316048922,1709337038945,-984.87,0.00021926,2]
[316048924,1709337038954,-500.0,0.00021926,2]
[316048926,1709337038963,-500.0,0.00021926,2]
[316048928,1709337038973,-500.0,0.00021926,2]
[316048930,1709337038982,-500.0,0.00021926,2]
[316048932,1709337038992,-500.0,0.00021926,2]
[316048934,1709337039001,-2803.33,0.00021926,2]
[316048936,1709337039011,-500.0,0.00021926,2]
[316048938,1709337039020,-500.0,0.00021926,2]
[316048940,1709337039029,-500.0,0.00021926,2]
[316048942,1709337039039,-500.0,0.00021926,2]
[316048944,1709337039049,-1804.03,0.00021926,2]
[316048987,1709337039482,-500.0,0.00021926,2]
[316048988,1709337039522,-500.0,0.00021926,2]
[316048991,1709337039550,-150.0,0.00021926,2]
[316048993,1709337039560,-14842.34,0.00021926,2]
[316048995,1709337039570,-500.0,0.00021926,2]
[316048998,1709337039581,-892.66,0.00021926,2]
[316049000,1709337039590,-500.0,0.00021926,2]
[316049001,1709337039600,-500.0,0.00021926,2]
[316049003,1709337039609,-500.0,0.00021926,2]
[316049006,1709337039619,-500.0,0.00021926,2]
[316049008,1709337039629,-806.67,0.00021926,2]
[316049010,1709337039639,-500.0,0.00021926,2]
[316049012,1709337039648,-500.0,0.00021926,2]
[316049014,1709337039657,-500.0,0.00021926,2]
[316049016,1709337039666,-500.0,0.00021926,2]
[316049018,1709337039675,-3012.53,0.00021926,2]
[316049020,1709337039684,-500.0,0.00021926,2]
[316049022,1709337039693,-500.0,0.00021926,2]
[316049024,1709337039702,-1014.74,0.00021926,2]
[316049026,1709337039711,-616.23,0.00021926,2]
[316049028,1709337039720,-2057.52,0.00021926,2]
[316049030,1709337039729,-500.0,0.00021926,2]
[316049032,1709337039738,-501.49,0.00021926,2]
[316049034,1709337039747,-505.13297987,0.00021926,2]
[316049036,1709337039756,-500.0,0.00021926,2]
[316049038,1709337039765,-1058.01,0.00021926,2]
[316049040,1709337039775,-500.0,0.00021926,2]
[316049042,1709337039784,-837.3,0.00021926,2]
[316049044,1709337039793,-500.0,0.00021926,2]
[316049046,1709337039802,-500.0,0.00021926,2]
[316049048,1709337039811,-1347.36,0.00021926,2]
[316049050,1709337039820,-500.0,0.00021926,2]
[316049052,1709337039829,-796.74,0.00021926,2]
[316049054,1709337039838,-500.0,0.00021926,2]
[316049056,1709337039847,-984.32,0.00021926,2]
[316049058,1709337039857,-500.0,0.00021926,2]
[316049060,1709337039867,-550.20727778,0.00021926,2]
[316049062,1709337039876,-500.0,0.00021926,2]
[316049063,1709337039885,-500.0,0.00021926,2]
[316049066,1709337039897,-500.0,0.00021926,2]
[316049068,1709337039906,-500.0,0.00021926,2]
[316049070,1709337039915,-1848.02,0.00021926,2]
[316049072,1709337039925,-500.0,0.00021926,2]
[316049073,1709337039934,-500.0,0.00021926,2]
[316049076,1709337039943,-728.84,0.00021926,2]
[316049078,1709337039952,-500.0,0.00021926,2]
[316049080,1709337039961,-500.0,0.00021926,2]
[316049082,1709337039970,-892.6,0.00021926,2]
[316049084,1709337039984,-2590.49,0.00021926,2]
[316049086,1709337039993,-500.0,0.00021926,2]
[316049088,1709337040002,-500.0,0.00021926,2]
[316049090,1709337040012,-803.54,0.00021926,2]
[316049092,1709337040023,-500.0,0.00021926,2]
[316049094,1709337040032,-718.16,0.00021926,2]
[316049096,1709337040042,-999.8,0.00021926,2]
[316049098,1709337040051,-1202.13,0.00021926,2]
[316049100,1709337040060,-585.48,0.00021926,2]
[316049102,1709337040070,-500.0,0.00021926,2]
[316049104,1709337040079,-500.0,0.00021926,2]
[316049106,1709337040089,-987.96,0.00021926,2]
[316049108,1709337040098,-524.77,0.00021926,2]
[316049110,1709337040107,-2275.29,0.00021926,2]
[316049112,1709337040117,-524.77,0.00021926,2]
[316049114,1709337040126,-500.0,0.00021926,2]
[316049116,1709337040136,-500.0,0.00021926,2]
[316049118,1709337040145,-500.0,0.00021926,2]
[316049120,1709337040154,-1628.38,0.00021926,2]
[316049122,1709337040164,-515.51,0.00021926,2]
[316049124,1709337040173,-500.0,0.00021926,2]
[316049126,1709337040182,-1108.04,0.00021926,2]
[316049128,1709337040191,-798.81,0.00021926,2]
[316049130,1709337040200,-500.0,0.00021926,2]
[316049132,1709337040210,-500.07,0.00021926,2]
[316049134,1709337040219,-8653.35,0.00021926,2]
[316049136,1709337040228,-1000.0,0.00021927,2]
[316049138,1709337040237,-12147.3647,0.00021927,2]
[316049140,1709337040246,-173143.35,0.00021927,2]
[316049142,1709337040255,-200.0,0.0002195,2]
[316049144,1709337040264,-800.0,0.0002195,2]
[316049147,1709337040274,-200.0,0.0002195,2]
[316049149,1709337040283,-500.0,0.0002195,2]
[316049151,1709337040292,-200.0,0.0002195,2]
[316049153,1709337040301,-150.56,0.00021986,2]
[316049155,1709337040310,-800.0,0.00021989,2]
[316049157,1709337040319,-247.17345217,0.00021991,2]
[316049159,1709337040328,-524.77,0.00021999,2]
[316049161,1709337040337,-1296.0,0.00022,2]
[316049163,1709337040346,-362.76736413,0.00022,2]
[316049165,1709337040356,-2600.0,0.00022,3]
[316049167,1709337040364,-329249.28408129,0.00022,2]
[316049169,1709337040373,-999.0,0.00022,4]
[316049171,1709337040382,-16948.0,0.00022,2]
[316049173,1709337040391,-431.0,0.00022,2]
[316049175,1709337040400,-150.0,0.00022006,2]
[316049177,1709337040409,-200.0,0.00022009,2]
[316049179,1709337040419,-151.34,0.0002201,2]
[316049181,1709337040428,-300.0,0.00022018,2]
[316049183,1709337040437,-153.65814854,0.00022023,2]
[316049185,1709337040446,-150.0,0.00022024,2]
[316049187,1709337040455,-150.0,0.00022024,2]
[316049189,1709337040464,-150.0,0.00022024,2]
[316049191,1709337040473,-150.0,0.00022024,2]
[316049193,1709337040482,-150.0,0.00022024,2]
[316049195,1709337040491,-150.0,0.00022024,2]
[316049197,1709337040501,-150.0,0.00022024,2]
[316049199,1709337040509,-150.0,0.00022024,2]
[316049201,1709337040520,-150.0,0.00022024,2]
[316049203,1709337040530,-150.0,0.00022024,2]
[316049205,1709337040542,-150.0,0.00022024,2]
[316049207,1709337040552,-150.0,0.00022024,2]
[316049209,1709337040561,-150.0,0.00022024,2]
[316049211,1709337040571,-150.0,0.00022024,2]
[316049213,1709337040582,-150.0,0.00022024,2]
[316049215,1709337040592,-150.0,0.00022024,2]
[316049217,1709337040601,-150.0,0.00022024,2]
[316049219,1709337040611,-150.0,0.00022024,2]
[316049220,1709337040621,-300.0,0.00022024,2]
[316049222,1709337040631,-524.77,0.00022024,2]
[316049224,1709337040641,-500.0,0.00022025,2]
[316049225,1709337040650,-500.0,0.00022025,2]
[316049227,1709337040659,-500.0,0.00022025,2]
[316049229,1709337040668,-500.0,0.00022025,2]
[316049231,1709337040678,-500.0,0.00022025,2]
[316049233,1709337040687,-500.0,0.00022025,2]
[316049234,1709337040696,-388.87860904,0.00022025,2]
[316049236,1709337040706,-500.0,0.00022025,2]
[316049239,1709337040716,-500.0,0.00022025,2]
[316049241,1709337040725,-500.0,0.00022025,2]
[316049244,1709337040735,-500.0,0.00022025,2]
[316049246,1709337040744,-500.0,0.00022025,2]
[316049248,1709337040753,-500.0,0.00022025,2]
[316049250,1709337040762,-500.0,0.00022025,2]
[316049251,1709337040771,-500.0,0.00022025,2]
[316049253,1709337040781,-500.0,0.00022025,2]
[316049255,1709337040790,-500.0,0.00022025,2]
[316049257,1709337040799,-500.0,0.00022025,2]
[316049259,1709337040808,-500.0,0.00022025,2]
[316049260,1709337040817,-500.0,0.00022025,2]
[316049262,1709337040826,-500.0,0.00022025,2]
[316049264,1709337040837,-500.0,0.00022025,2]
[316049266,1709337040846,-500.0,0.00022025,2]
[316049268,1709337040854,-500.0,0.00022025,2]
[316049270,1709337040863,-500.0,0.00022025,2]
[316049272,1709337040873,-500.0,0.00022025,2]
[316049274,1709337040882,-566.67975107,0.00022025,2]
[316049276,1709337040891,-500.0,0.00022025,2]
[316049277,1709337040900,-500.0,0.00022025,2]
[316049279,1709337040909,-500.0,0.00022025,2]
[316049281,1709337040918,-500.0,0.00022025,2]
[316049283,1709337040927,-500.0,0.00022025,2]
[316049285,1709337040936,-500.0,0.00022025,2]
[316049287,1709337040945,-500.0,0.00022025,2]
[316049289,1709337040954,-583.97,0.00022025,2]
[316049290,1709337040963,-523.56352762,0.00022025,2]
[316049292,1709337040972,-504.11399739,0.00022025,2]
[316049294,1709337040982,-500.0,0.00022025,2]
[316049296,1709337040991,-500.0,0.00022025,2]
[316049298,1709337041001,-500.0,0.00022025,2]
[316049300,1709337041010,-500.0,0.00022025,2]
[316049302,1709337041020,-500.0,0.00022025,2]
[316049303,1709337041030,-500.0,0.00022025,2]
[316049305,1709337041039,-186.92075647,0.00022025,2]
[316049307,1709337041048,-500.0,0.00022025,2]
[316049309,1709337041057,-500.0,0.00022025,2]
[316049311,1709337041066,-500.0,0.00022025,2]
[316049313,1709337041075,-500.0,0.00022025,2]
[316049315,1709337041085,-500.0,0.00022025,2]
[316049317,1709337041094,-500.0,0.00022025,2]
[316049318,1709337041103,-563.15562884,0.00022025,2]
[316049320,1709337041112,-500.0,0.00022025,2]
[316049322,1709337041121,-500.0,0.00022025,2]
[316049324,1709337041131,-500.0,0.00022025,2]
[316049326,1709337041140,-619.57219319,0.00022025,2]
[316049328,1709337041149,-500.0,0.00022025,2]
[316049330,1709337041158,-500.0,0.00022025,2]
[316049332,1709337041167,-222.8282592,0.00022025,2]
[316049334,1709337041176,-500.0,0.00022025,2]
[316049335,1709337041186,-500.0,0.00022025,2]
[316049337,1709337041195,-500.0,0.00022025,2]
[316049339,1709337041204,-500.0,0.00022025,2]
[316049341,1709337041213,-500.0,0.00022025,2]
[316049343,1709337041222,-500.0,0.00022025,2]
[316049345,1709337041231,-500.0,0.00022025,2]
[316049346,1709337041240,-500.0,0.00022025,2]
[316049348,1709337041249,-500.0,0.00022025,2]
[316049350,1709337041259,-500.0,0.00022025,2]
[316049352,1709337041268,-510.53,0.00022025,2]
[316049354,1709337041278,-500.0,0.00022025,2]
[316049356,1709337041287,-500.0,0.00022025,2]
[316049357,1709337041296,-500.0,0.00022025,2]
[316049359,1709337041306,-500.0,0.00022025,2]
[316049361,1709337041315,-500.0,0.00022025,2]
[316049363,1709337041324,-500.0,0.00022025,2]
[316049365,1709337041335,-541.66,0.00022025,2]
[316049367,1709337041344,-500.0,0.00022025,2]
[316049369,1709337041354,-500.0,0.00022025,2]
[316049371,1709337041363,-500.0,0.00022025,2]
[316049373,1709337041372,-500.0,0.00022025,2]
[316049375,1709337041382,-582.9,0.00022025,2]
[316049377,1709337041391,-500.0,0.00022025,2]
[316049379,1709337041400,-500.0,0.00022025,2]
[316049380,1709337041410,-500.0,0.00022025,2]
[316049382,1709337041419,-500.0,0.00022025,2]
[316049384,1709337041429,-279.62336951,0.00022025,2]
[316049386,1709337041438,-632.4,0.00022025,2]
[316049388,1709337041447,-500.0,0.00022025,2]
[316049390,1709337041456,-500.0,0.00022025,2]
[316049392,1709337041465,-500.0,0.00022025,2]
[316049393,1709337041474,-500.0,0.00022025,2]
[316049395,1709337041483,-541.92,0.00022025,2]
[316049397,1709337041493,-500.0,0.00022025,2]
[316049399,1709337041502,-500.0,0.00022025,2]
[316049401,1709337041511,-500.0,0.00022025,2]
[316049403,1709337041521,-500.0,0.00022025,2]
[316049405,1709337041531,-500.0,0.00022025,2]
[316049407,1709337041543,-500.0,0.00022025,2]
[316049409,1709337041553,-500.0,0.00022025,2]
[316049411,1709337041562,-500.0,0.00022025,2]
[316049413,1709337041572,-500.0,0.00022025,2]
[316049414,1709337041581,-500.0,0.00022025,2]
[316049418,1709337041602,-500.0,0.00022025,2]
[316049420,1709337041612,-500.0,0.00022025,2]
[316049421,1709337041623,-571.88,0.00022025,2]
[316049423,1709337041634,-500.0,0.00022025,2]
[316049425,1709337041644,-500.0,0.00022025,2]
[316049427,1709337041654,-500.0,0.00022025,2]
[316049429,1709337041664,-994.84,0.00022025,2]
[316049431,1709337041677,-525.17,0.00022025,2]
[316049434,1709337041688,-500.0,0.00022025,2]
[316049436,1709337041698,-500.0,0.00022025,2]
[316049438,1709337041708,-500.0,0.00022025,2]
[316049439,1709337041718,-500.0,0.00022025,2]
[316049441,1709337041729,-500.0,0.00022025,2]
[316049443,1709337041739,-500.0,0.00022025,2]
[316049445,1709337041749,-500.0,0.00022025,2]
[316049447,1709337041759,-500.0,0.00022025,2]
[316049449,1709337041769,-500.0,0.00022025,2]
[316049451,1709337041779,-500.0,0.00022025,2]
[316049453,1709337041789,-526.28847602,0.00022025,2]
[316049455,1709337041800,-500.0,0.00022025,2]
[316049457,1709337041810,-500.0,0.00022025,2]
[316049459,1709337041819,-856.22,0.00022025,2]
[316049461,1709337041829,-866.06,0.00022025,2]
[316049463,1709337041839,-500.0,0.00022025,2]
[316049465,1709337041849,-500.0,0.00022025,2]
[316049466,1709337041859,-500.0,0.00022025,2]
[316049467,1709337041868,-500.0,0.00022025,2]
[316049468,1709337041877,-543.27591358,0.00022025,2]
[316049469,1709337041886,-695.56,0.00022025,2]
[316049470,1709337041895,-500.0,0.00022025,2]
[316049471,1709337041905,-702.19,0.00022025,2]
[316049472,1709337041914,-500.0,0.00022025,2]
[316049473,1709337041923,-500.0,0.00022025,2]
[316049474,1709337041932,-500.0,0.00022025,2]
[316049475,1709337041942,-500.0,0.00022025,2]
[316049476,1709337041952,-549.52,0.00022025,2]
[316049477,1709337041961,-500.0,0.00022025,2]
[316049479,1709337041971,-506.49,0.00022025,2]
[316049481,1709337041981,-500.0,0.00022025,2]
[316049483,1709337041991,-500.0,0.00022025,2]
[316049485,1709337042001,-500.0,0.00022025,2]
[316049488,1709337042011,-500.0,0.00022025,2]
[316049490,1709337042021,-500.0,0.00022025,2]
[316049492,1709337042031,-500.0,0.00022025,2]
[316049494,1709337042041,-500.0,0.00022025,2]
[316049496,1709337042051,-500.0,0.00022025,2]
[316049498,1709337042061,-500.0,0.00022025,2]
[316049500,1709337042072,-500.0,0.00022025,2]
[316049502,1709337042082,-500.0,0.00022025,2]
[316049504,1709337042092,-500.0,0.00022025,2]
[316049506,1709337042101,-500.0,0.00022025,2]
[316049508,1709337042111,-500.0,0.00022025,2]
[316049510,1709337042121,-785.9,0.00022025,2]
[316049512,1709337042131,-500.0,0.00022025,2]
[316049514,1709337042141,-500.0,0.00022025,2]
[316049516,1709337042152,-510.33057656,0.00022025,2]
[316049518,1709337042161,-500.0,0.00022025,2]
[316049520,1709337042171,-500.0,0.00022025,2]
[316049522,1709337042181,-500.0,0.00022025,2]
[316049525,1709337042190,-727.61,0.00022025,2]
[316049527,1709337042200,-500.0,0.00022025,2]
[316049529,1709337042210,-500.0,0.00022025,2]
[316049531,1709337042219,-500.0,0.00022025,2]
[316049533,1709337042229,-500.0,0.00022025,2]
[316049535,1709337042238,-500.0,0.00022025,2]
[316049537,1709337042249,-500.0,0.00022025,2]
[316049539,1709337042258,-658.48,0.00022025,2]
[316049541,1709337042267,-500.0,0.00022025,2]
[316049543,1709337042278,-500.0,0.00022025,2]
[316049545,1709337042288,-500.0,0.00022025,2]
[316049547,1709337042297,-500.0,0.00022025,2]
[316049549,1709337042307,-710.03,0.00022025,2]
[316049551,1709337042317,-500.0,0.00022025,2]
[316049554,1709337042326,-500.0,0.00022025,2]
[316049556,1709337042336,-500.0,0.00022025,2]
[316049558,1709337042345,-500.0,0.00022025,2]
[316049560,1709337042355,-500.0,0.00022025,2]
[316049562,1709337042365,-500.0,0.00022025,2]
[316049564,1709337042374,-232.83359707,0.00022025,2]
[316049566,1709337042384,-855.17,0.00022025,2]
[316049568,1709337042394,-574.28,0.00022025,2]
[316049570,1709337042403,-500.0,0.00022025,2]
[316049572,1709337042413,-500.0,0.00022025,2]
[316049574,1709337042422,-500.0,0.00022025,2]
[316049576,1709337042432,-500.0,0.00022025,2]
[316049578,1709337042442,-500.0,0.00022025,2]
[316049580,1709337042452,-500.0,0.00022025,2]
[316049582,1709337042462,-500.0,0.00022025,2]
[316049584,1709337042472,-1247.04,0.00022025,2]
[316049586,1709337042481,-500.0,0.00022025,2]
[316049588,1709337042490,-500.0,0.00022025,2]
[316049590,1709337042499,-500.0,0.00022025,2]
[316049592,1709337042509,-500.0,0.00022025,2]
[316049594,1709337042519,-500.0,0.00022025,2]
[316049596,1709337042531,-500.0,0.00022025,2]
[316049598,1709337042543,-500.0,0.00022025,2]
[316049601,1709337042552,-384.41149088,0.00022025,2]
[316049603,1709337042562,-500.0,0.00022025,2]
[316049605,1709337042571,-500.0,0.00022025,2]
[316049607,1709337042580,-347.53411968,0.00022025,2]
[316049609,1709337042590,-500.0,0.00022025,2]
[316049611,1709337042599,-500.0,0.00022025,2]
[316049613,1709337042609,-500.0,0.00022025,2]
[316049615,1709337042619,-172.53746102,0.00022025,2]
[316049638,1709337042885,-500.0,0.00022025,2]
[316049639,1709337042902,-500.0,0.00022025,2]
[316049640,1709337042913,-500.0,0.00022025,2]
[316049641,1709337042922,-500.0,0.00022025,2]
[316049642,1709337042932,-669.26,0.00022025,2]
[316049643,1709337042942,-500.0,0.00022025,2]
[316049644,1709337042951,-500.0,0.00022025,2]
[316049645,1709337042961,-500.0,0.00022025,2]
[316049646,1709337042971,-500.0,0.00022025,2]
[316049647,1709337042981,-600.34,0.00022025,2]
[316049648,1709337042990,-877.87,0.00022025,2]
[316049649,1709337043000,-500.0,0.00022025,2]
[316049650,1709337043010,-500.0,0.00022025,2]
[316049652,1709337043020,-553.54442757,0.00022025,2]
[316049654,1709337043031,-500.0,0.00022025,2]
[316049655,1709337043040,-500.0,0.00022025,2]
[316049656,1709337043050,-500.0,0.00022025,2]
[316049657,1709337043059,-567.54,0.00022025,2]
[316049658,1709337043069,-500.0,0.00022025,2]
[316049659,1709337043079,-500.0,0.00022025,2]
[316049660,1709337043088,-500.0,0.00022025,2]
[316049661,1709337043097,-500.0,0.00022025,2]
[316049663,1709337043107,-500.0,0.00022025,2]
[316049664,1709337043116,-500.0,0.00022025,2]
[316049665,1709337043125,-500.0,0.00022025,2]
[316049666,1709337043135,-500.0,0.00022025,2]
[316049667,1709337043144,-500.0,0.00022025,2]
[316049668,1709337043153,-500.0,0.00022025,2]
[316049669,1709337043162,-500.0,0.00022025,2]
[316049670,1709337043171,-500.0,0.00022025,2]
[316049671,1709337043180,-500.0,0.00022025,2]
[316049672,1709337043190,-592.87,0.00022025,2]
[316049673,1709337043199,-500.0,0.00022025,2]
[316049674,1709337043208,-502.38762067,0.00022025,2]
[316049675,1709337043218,-500.0,0.00022025,2]
[316049676,1709337043227,-509.57063777,0.00022025,2]
[316049677,1709337043237,-513.52,0.00022025,2]
[316049678,1709337043246,-500.0,0.00022025,2]
[316049679,1709337043255,-500.0,0.00022025,2]
[316049680,1709337043264,-500.0,0.00022025,2]
[316049681,1709337043274,-500.0,0.00022025,2]
[316049682,1709337043284,-500.0,0.00022025,2]
[316049683,1709337043293,-500.0,0.00022025,2]
[316049684,1709337043302,-500.0,0.00022025,2]
[316049685,1709337043312,-500.0,0.00022025,2]
[316049686,1709337043321,-500.0,0.00022025,2]
[316049687,1709337043331,-500.0,0.00022025,2]
[316049688,1709337043340,-1155.94,0.00022025,2]
[316049689,1709337043349,-588.15,0.00022025,2]
[316049690,1709337043359,-500.0,0.00022025,2]
[316049691,1709337043368,-511.58334896,0.00022025,2]
[316049692,1709337043378,-517.58958322,0.00022025,2]
[316049693,1709337043387,-816.39,0.00022025,2]
[316049694,1709337043398,-500.0,0.00022025,2]
[316049695,1709337043408,-500.0,0.00022025,2]